fUST/lending_fUST_20250427
["ID","MTS","AMOUNT","RATE_DAILY","PERIOD"]
[359067074,1745690400746,-500.0,0.0001647,2]
[359067075,1745690401017,-500.0,0.0001647,2]
[359067076,1745690401070,-500.0,0.0001647,2]
[359067077,1745690401103,-500.0,0.0001647,2]
[359067078,1745690401133,-500.0,0.0001647,2]
[359067079,1745690401159,-400.0,0.00016471,2]
[359067080,1745690401183,-400.0,0.00016471,2]
[359067081,1745690401207,-400.0,0.00016471,2]
[359067082,1745690401231,-400.0,0.00016471,2]
[359067083,1745690401256,-255.12038607,0.00016472,2]
[359067084,1745690401279,-500.0,0.00016472,2]
[359067085,1745690401301,-500.0,0.00016472,2]
[359067086,1745690401327,-400.0,0.00016743,2]
[359067087,1745690401352,-185.19,0.00016743,2]
[359067088,1745690401375,-420.86,0.00016743,2]
[359067089,1745690401398,-400.0,0.00016743,2]
[359067090,1745690401422,-400.0,0.00016743,2]
[359067091,1745690401446,-400.0,0.00016743,2]
[359067092,1745690401470,-443.02,0.00016743,2]
[359067093,1745690401493,-167.43,0.00016743,2]
[359067094,1745690401517,-400.0,0.00016743,2]
[359067095,1745690401540,-417.65,0.00016743,2]
[359067096,1745690401565,-400.0,0.00016743,2]
[359067097,1745690401590,-400.0,0.00016743,2]
[359067098,1745690401614,-400.0,0.00016743,2]
[359067099,1745690401638,-400.0,0.00016743,2]
[359067100,1745690401662,-500.0,0.00016744,2]
[359067101,1745690401686,-400.0,0.00016744,2]
[359067102,1745690401710,-400.0,0.00016744,2]
[359067103,1745690401735,-400.0,0.00016744,2]
[359067104,1745690401760,-400.0,0.00016744,2]
[359067105,1745690401784,-400.0,0.00016744,2]
[359067106,1745690401808,-400.0,0.00016744,2]
[359067107,1745690401832,-400.0,0.00016744,2]
[359067108,1745690401857,-432.79,0.00016745,2]
[359067109,1745690401880,-400.0,0.00016745,2]
[359067110,1745690401904,-450.61,0.00016745,2]
[359067111,1745690401927,-500.0,0.00016978,2]
[359067112,1745690401950,-500.0,0.00016978,2]
[359067113,1745690401972,-500.0,0.00016978,2]
[359067114,1745690401997,-500.0,0.00017006,2]
[359067115,1745690402024,-500.0,0.00017006,2]
[359067116,1745690402050,-500.0,0.00017006,2]
[359067117,1745690402075,-500.0,0.00017006,2]
[359067118,1745690402098,-500.0,0.00017006,2]
[359067119,1745690402122,-400.0,0.00017017,2]
[359067120,1745690402146,-400.0,0.00017017,2]
[359067121,1745690402171,-400.0,0.00017017,2]
[359067122,1745690402196,-400.0,0.00017017,2]
[359067123,1745690402220,-400.0,0.00017017,2]
[359067124,1745690402247,-400.0,0.00017017,2]
[359067125,1745690402272,-280.91273208,0.00017017,2]
[359067126,1745690402297,-400.0,0.00017018,2]
[359067127,1745690402321,-400.0,0.00017018,2]
[359067128,1745690402347,-161.85280463,0.00017018,2]
[359067129,1745690407842,-300.0,0.00016469,2]
[359067130,1745690407868,-238.14719537,0.00017018,2]
[359067131,1745690407893,-398.7,0.00017018,2]
[359067132,1745690407919,-400.0,0.00017018,2]
[359067133,1745690407944,-400.0,0.00017018,2]
[359067134,1745690407968,-331.14855723,0.00017019,2]
[359067135,1745690407992,-301.91,0.00017291,2]
[359067136,1745690408017,-230.31,0.00017291,2]
[359067137,1745690408046,-400.0,0.00017291,2]
[359067138,1745690408071,-196.11,0.00017291,2]
[359067139,1745690408097,-400.0,0.00017291,2]
[359067140,1745690408121,-332.75040641,0.00017291,2]
[359067141,1745690408145,-400.0,0.00017292,2]
[359067142,1745690408169,-400.0,0.00017292,2]
[359067143,1745690408195,-400.0,0.00017292,2]
[359067144,1745690408219,-224.55,0.00017565,2]
[359067145,1745690408243,-400.0,0.00017565,2]
[359067146,1745690408267,-201.9,0.00017566,2]
[359067147,1745690408292,-276.73089294,0.00017566,2]
[359067148,1745690408317,-452.46198326,0.00017566,2]
[359067149,1745690408341,-400.0,0.00017839,2]
[359067150,1745690408366,-981.81346638,0.000179,2]
[359067151,1745690408388,-160.0,0.00017953,2]
[359067152,1745690408412,-160.0,0.00017953,2]
[359067153,1745690408437,-160.0,0.00017953,2]
[359067154,1745690408460,-421.06755229,0.00017953,2]
[359067155,1745690408483,-160.0,0.00017953,2]
[359067156,1745690408506,-160.0,0.00017953,2]
[359067157,1745690408529,-420.0,0.00017998,2]
[359067159,1745690446344,500.0,0.00016469,2]
[359067160,1745690474271,1000.0,0.00016038,2]
[359067161,1745690511612,400.0,0.00016744,2]
[359067162,1745690511852,400.0,0.00017018,2]
[359067163,1745690512095,400.0,0.00017292,2]
[359067164,1745690512321,400.0,0.00017566,2]
[359067165,1745690512558,400.0,0.0001784,2]
[359067166,1745690512805,470.33,0.00016469,2]
[359067167,1745690514575,400.0,0.00016469,2]
[359067168,1745690514818,452.48379162,0.00016743,2]
[359067169,1745690519092,191.67735553,0.00016469,2]
[359067173,1745690633767,400.0,0.00016469,2]
[359067174,1745690634047,400.0,0.00016743,2]
[359067175,1745690634295,463.09,0.00017017,2]
[359067176,1745690634781,400.0,0.00016744,2]
[359067177,1745690637092,274.26303769,0.00016469,2]
[359067178,1745690637245,400.0,0.00016469,2]
[359067179,1745690637727,414.12869369,0.00016743,2]
[359067180,1745690710440,400.0,0.00016469,2]
[359067181,1745690710685,393.81,0.00016743,2]
[359067182,1745690721041,400.0,0.00016469,2]
[359067183,1745690721298,171.74,0.00016743,2]
[359067184,1745690746125,-1000.0,0.00018013,2]
[359067185,1745690746150,-2033.92839847,0.00018014,2]
[359067186,1745690762957,654.27153618,0.00017913,2]
[359067191,1745690822938,400.0,0.00016469,2]
[359067192,1745690823185,485.0,0.00016743,2]
[359067193,1745690829105,-3336.03982882,0.00018014,2]
[359067194,1745690829127,-157.76832995,0.00018192,2]
[359067195,1745690829148,-162.0252337,0.00018292,2]
[359067196,1745690829173,-160.0,0.00018359,2]
[359067197,1745690829196,-98.557123,0.00018898,2]
[359067198,1745690835777,400.0,0.00016469,2]
[359067217,1745691031866,-160.0,0.00018899,2]
[359067218,1745691031877,-811.07722748,0.000189,2]
[359067219,1745691031887,-562.0,0.00018907,2]
[359067220,1745691031897,-6982.701088,0.00018908,2]
[359067221,1745691031907,-199.19,0.00019416,2]
[359067222,1745691031918,-201.0,0.0001979,2]
[359067223,1745691031927,-300.0,0.00019791,2]
[359067225,1745691031937,-293.18206662,0.00019792,2]
[359067227,1745691031947,-677.049362,0.000199,2]
[359067230,1745691031957,-949.08635066,0.000199,2]
[359067232,1745691031967,-500.0,0.00019999,2]
[359067234,1745691031977,-500.0,0.00019999,2]
[359067236,1745691031986,-611.06656368,0.00019999,2]
[359067238,1745691031996,-500.0,0.00019999,2]
[359067240,1745691032006,-427.36096694,0.0002,2]
[359067287,1745691038020,-634.762,0.0002,2]
[359067290,1745691038033,-8065.57351325,0.0002,2]
[359067292,1745691038045,-10275.1551674,0.0002,2]
[359067293,1745691038055,-151.0,0.0002,2]
[359067294,1745691038065,-160.0,0.0002,2]
[359067295,1745691038074,-160.0,0.0002,2]
[359067296,1745691038083,-150.0,0.0002,2]
[359067297,1745691038095,-192.24773913,0.0002,2]
[359067298,1745691038105,-286.59433024,0.00020254,5]
[359067299,1745691038115,-179.78425889,0.00020261,2]
[359067300,1745691038127,-174.9106903,0.00020574,2]
[359067301,1745691038138,-949.08635063,0.0002059,2]
[359067302,1745691038148,-157.3073361,0.00020904,2]
[359067303,1745691038158,-566.8670154,0.00020904,2]
[359067304,1745691038169,-174.9106903,0.00020904,2]
[359067305,1745691038183,-157.3073361,0.00020904,2]
[359067306,1745691038193,-566.8670154,0.00020904,2]
[359067307,1745691038205,-174.9106903,0.00020904,2]
[359067308,1745691038215,-566.2175583,0.00020904,2]
[359067309,1745691038227,-157.1359863,0.00020904,2]
[359067310,1745691038237,-349.7445064,0.00020904,2]
[359067311,1745691038247,-150.0,0.00021,2]
[359067312,1745691038259,-160.0,0.00021,5]
[359067313,1745691038269,-160.0,0.00021,5]
[359067314,1745691038278,-157.45,0.00021,2]
[359067315,1745691038288,-150.0,0.00021,2]
[359067316,1745691038298,-500.0,0.00021218,2]
[359067317,1745691038307,-500.0,0.00021218,2]
[359067318,1745691038317,-949.08635063,0.00021279,3]
[359067319,1745691038327,-174.9106903,0.00021396,2]
[359067320,1745691038336,-174.9106903,0.00021396,2]
[359067321,1745691038346,-174.9106903,0.00021396,2]
[359067322,1745691038357,-251.6865959,0.00021396,2]
[359067323,1745691038366,-500.0,0.00021409,2]
[359067324,1745691038378,-420.0,0.00021555,2]
[359067325,1745691038388,-151.0,0.00021726,2]
[359067327,1745691038399,-153.09267097,0.00021726,2]
[359067328,1745691038409,-174.4397159,0.00021726,2]
[359067329,1745691038420,-151.0,0.00021863,2]
[359067330,1745691038429,-12698.39408107,0.00021913,2]
[359067332,1745691038439,-160.0,0.00021917,2]
[359067334,1745691038449,-949.08635063,0.00021969,3]
[359067336,1745691038459,-633.51197864,0.00021973,2]
[359067338,1745691038469,-500.0,0.00021973,2]
[359067340,1745691038479,-500.0,0.00021973,2]
[359067342,1745691038489,-500.0,0.00021973,2]
[359067344,1745691038500,-500.0,0.00021973,2]
[359067347,1745691038510,-500.0,0.00021973,2]
[359067349,1745691038519,-500.0,0.00021973,2]
[359067350,1745691038529,-300.0,0.00021973,2]
[359067353,1745691038540,-500.0,0.00021973,2]
[359067354,1745691038552,-212.54609032,0.00021979,2]
[359067356,1745691038562,-339.86413243,0.00021979,2]
[359067358,1745691038571,-50000.0,0.0002198,2]
[359067360,1745691038581,-288.99,0.0002199,3]
[359067362,1745691038591,-866.97,0.0002199,3]
[359067364,1745691038600,-151.0,0.00022,2]
[359067366,1745691038611,-63473.52197803,0.00022,2]
[359067368,1745691038621,-348.78755029,0.00022,2]
[359067370,1745691038632,-2253.17077574,0.00022,7]
[359067372,1745691038642,-1000.0,0.00022,2]
[359067375,1745691038654,-160.0,0.00022,8]
[359067377,1745691038664,-160.0,0.00022,8]
[359067378,1745691038675,-186.0,0.00022,2]
[359067380,1745691038686,-174.9106903,0.00022067,2]
[359067382,1745691038696,-349.8213806,0.00022067,2]
[359067384,1745691038707,-1400.0,0.00022068,2]
[359067386,1745691038718,-291.39740675,0.000221,2]
[359067388,1745691038728,-151.0,0.00022137,2]
[359067390,1745691038738,-250.0,0.00022243,2]
[359067392,1745691038747,-151.0,0.00022274,2]
[359067394,1745691038758,-245.0,0.00022411,2]
[359067396,1745691038767,-949.08635063,0.00022659,4]
[359067398,1745691038778,-677.04936198,0.00022694,2]
[359067400,1745691038789,-160.0,0.00022769,3]
[359067402,1745691038799,-88545.36664083,0.0002299,2]
[359067404,1745691038808,-247.02264083,0.00023,2]
[359067406,1745691038818,-160.0,0.00023,11]
[359067408,1745691038831,-160.0,0.00023,11]
[359067410,1745691038844,-200.0,0.00023,2]
[359067412,1745691038855,-186.0,0.00023014,2]
[359067414,1745691038864,-1400.0,0.00023164,2]
[359067416,1745691038875,-165.401,0.00023287,3]
[359067418,1745691038885,-160.0,0.00023287,2]
[359067420,1745691038894,-949.08635063,0.00023348,4]
[359067422,1745691038904,-577.98,0.0002336,3]
[359067424,1745691038913,-151.0,0.000234,10]
[359067425,1745691038923,-1558.23805296,0.000234,2]
[359067427,1745691038933,-500.0,0.00023473,2]
[359067429,1745691038943,-500.0,0.00023473,2]
[359067431,1745691038953,-500.0,0.00023473,2]
[359067433,1745691038963,-500.0,0.00023473,2]
[359067435,1745691038973,-500.0,0.00023473,2]
[359067437,1745691038982,-371.64706201,0.00023476,2]
[359067440,1745691038996,-215.35293799,0.00023476,2]
[359067442,1745691039006,-6162.20255915,0.000235,2]
[359067580,1745691040254,-1300.74093611,0.000235,2]
[359067582,1745691040450,-12247.3922154,0.000235,2]
[359067584,1745691040462,-257.15924089,0.000235,3]
[359067586,1745691040471,-5436.21078399,0.000235,2]
[359067828,1745691042912,-2706.93594032,0.000235,2]
[359067829,1745691042924,-500.0,0.000235,2]
[359067830,1745691042965,-417.84001803,0.000235,2]
[359067950,1745691045990,-5450.0,0.000235,2]
[359067951,1745691046042,-1195.46,0.000235,2]
[359067952,1745691046056,-1327.63074095,0.000235,2]
[359067953,1745691046067,-32965.92251671,0.000235,2]
[359067954,1745691046090,-573.1,0.00023507,15]
[359067955,1745691046101,-634.0,0.000236,2]
[359067956,1745691046112,-600.0,0.00023616,2]
[359067957,1745691046122,-491.29403777,0.00023673,2]
[359067958,1745691046150,-8.70596223,0.00023673,2]
[359067959,1745691046161,-500.0,0.00023673,2]
[359067960,1745691046172,-994.43546777,0.000237,2]
[359067961,1745691046204,-1999.9223497,0.000237,2]
[359067975,1745691464425,543.21663503,0.00016469,2]
[359068025,1745691958124,-209.1056226,0.00018233,2]
[359068026,1745691958145,-202.8405018,0.00018238,2]
[359068027,1745691958166,-197.8314243,0.00018562,2]
[359068028,1745691958408,-1000.0,0.00018652,2]
[359068029,1745691958430,-1163.16083067,0.00018653,2]
[359068043,1745692039093,-4366.22681728,0.00018653,2]
[359068065,1745692128046,4734.00919971,0.00015,2]
[359068081,1745692232045,-3252.5551552,0.0001835,2]
[359068082,1745692232055,-533.89616835,0.00018653,2]
[359068083,1745692232064,-240.445882,0.00018653,2]
[359068084,1745692232074,-292.7475352,0.00018701,2]
[359068085,1745692232083,-288.7698945,0.00018702,2]
[359068086,1745692232092,-1797.87314945,0.00018752,2]
[359068087,1745692232101,-171.0904105,0.00018764,2]
[359068088,1745692232110,-195.1329309,0.00018852,2]
[359068089,1745692232120,-540.71815166,0.000189,2]
[359068090,1745692232129,-917.55044505,0.00019871,2]
[359068091,1745692232138,-300.0,0.00019899,2]
[359068092,1745692232147,-300.0,0.00019899,2]
[359068093,1745692232156,-759.26908062,0.000199,2]
[359068094,1745692232165,-12582.09293779,0.00019948,2]
[359068095,1745692232175,-44167.98921844,0.0001995,2]
[359068096,1745692232187,-2837.65296409,0.0001995,2]
[359068097,1745692232197,-160.0,0.00019951,2]
[359068099,1745692232206,-546.80156354,0.00019958,2]
[359068101,1745692232216,-500.0,0.00019958,2]
[359068103,1745692232225,-500.0,0.00019958,2]
[359068106,1745692232235,-500.0,0.00019958,2]
[359068108,1745692232256,-500.0,0.00019958,2]
[359068109,1745692232268,-500.0,0.00019958,2]
[359068110,1745692232278,-500.0,0.00019958,2]
[359068111,1745692232288,-500.0,0.00019958,2]
[359068113,1745692232299,-500.0,0.00019958,2]
[359068114,1745692232309,-294.99939547,0.00019958,2]
[359068116,1745692232323,-205.00060453,0.00019958,2]
[359068118,1745692232334,-500.0,0.00019958,2]
[359068119,1745692232344,-500.0,0.00019958,2]
[359068120,1745692232354,-500.0,0.00019958,2]
[359068121,1745692232364,-152.07566547,0.00019958,2]
[359068149,1745692238015,-336.26733391,0.00019958,2]
[359068151,1745692238028,-11.65700062,0.00019958,2]
[359068153,1745692238038,-500.0,0.00019958,2]
[359068156,1745692238048,-500.0,0.00019958,2]
[359068158,1745692238059,-500.0,0.00019958,2]
[359068160,1745692238069,-87.47435389,0.00019958,2]
[359068162,1745692238082,-412.52564611,0.00019958,2]
[359068164,1745692238091,-377.87129061,0.00019958,2]
[359068166,1745692238101,-500.0,0.00019958,2]
[359068168,1745692238110,-500.0,0.00019958,2]
[359068170,1745692238120,-500.0,0.00019958,2]
[359068172,1745692238129,-500.0,0.00019958,2]
[359068174,1745692238139,-500.0,0.00019958,2]
[359068176,1745692238149,-289.33053907,0.00019958,2]
[359068178,1745692238162,-210.66946093,0.00019958,2]
[359068181,1745692238172,-500.0,0.00019958,2]
[359068183,1745692238182,-243.53597743,0.00019958,2]
[359068185,1745692238195,-256.46402257,0.00019958,2]
[359068187,1745692238205,-500.0,0.00019958,2]
[359068189,1745692238215,-275.71042015,0.00019958,2]
[359068191,1745692238225,-500.0,0.00019958,2]
[359068193,1745692238234,-466.31735424,0.00019958,2]
[359068195,1745692238246,-33.68264576,0.00019958,2]
[359068197,1745692238259,-259.65597397,0.00019958,2]
[359068199,1745692238271,-240.34402603,0.00019958,2]
[359068201,1745692238281,-500.0,0.00019958,2]
[359068203,1745692238291,-500.0,0.00019958,2]
[359068205,1745692238302,-400.0,0.00019958,2]
[359068207,1745692238312,-445.85597397,0.00019958,2]
[359068209,1745692238325,-54.14402603,0.00019958,2]
[359068212,1745692238335,-500.0,0.00019958,2]
[359068214,1745692238346,-500.0,0.00019958,2]
[359068216,1745692238355,-500.0,0.00019958,2]
[359068217,1745692238365,-500.0,0.00019958,2]
[359068220,1745692238375,-500.0,0.00019958,2]
[359068222,1745692238385,-500.0,0.00019958,2]
[359068224,1745692238395,-68.04357207,0.00019973,2]
[359068407,1745692240553,-148.37808535,0.00019973,2]
[359068409,1745692240563,-500.0,0.00019973,2]
[359068411,1745692240573,-425.43371744,0.00019973,2]
[359068664,1745692243090,-74.56628256,0.00019973,2]
[359068666,1745692243100,-500.0,0.00019973,2]
[359068668,1745692243110,-500.0,0.00019973,2]
[359068670,1745692243120,-432.41570605,0.00019973,2]
[359068672,1745692243130,-500.0,0.00019973,2]
[359068674,1745692243140,-11.95891302,0.00019973,2]
[359068681,1745692243196,-488.04108698,0.00019973,2]
[359068683,1745692243206,-500.0,0.00019973,2]
[359068685,1745692243216,-500.0,0.00019973,2]
[359068687,1745692243227,-300.0,0.00019973,2]
[359068689,1745692243237,-400.0,0.00019999,2]
[359068691,1745692243247,-1610.0,0.00019999,2]
[359068693,1745692243259,-370.44254469,0.00019999,2]
[359068696,1745692243269,-8775.86677237,0.0002,2]
[359068700,1745692243282,-798.50592059,0.0002,2]
[359068704,1745692243294,-254.22,0.0002,2]
[359068706,1745692243307,-1198.65646326,0.0002,2]
[359068708,1745692243319,-943.09615219,0.0002,2]
[359068965,1745692246276,-13792.07882887,0.0002,2]
[359068967,1745692246286,-38193.11948121,0.0002,2]
[359068978,1745692246383,-24703.26757755,0.0002,2]
[359068984,1745692246438,-4407.87177356,0.0002,2]
[359070067,1745692782127,1785.9526339,0.00017989,2]
[359070090,1745693156092,-199.82067607,0.00018078,2]
[359070091,1745693156122,-250.0,0.00018078,2]
[359070092,1745693156153,-204.0619827,0.00018078,2]
[359070093,1745693156178,-473.508854,0.00018178,2]
[359070094,1745693156205,-300.0,0.0001853,2]
[359070095,1745693156232,-300.0,0.0001853,2]
[359070096,1745693156261,-1200.0,0.0001853,2]
[359070097,1745693156290,-300.0,0.0001853,2]
[359070098,1745693156316,-502.98004991,0.00018534,2]
[359070110,1745693240084,-2913.45080089,0.00018534,2]
[359070111,1745693240106,-1808.60003716,0.00018534,2]
[359070152,1745693432322,-300.0,0.00018531,2]
[359070153,1745693432332,-489.0,0.00018531,2]
[359070154,1745693432342,-300.0,0.00018531,2]
[359070155,1745693432351,-4553.83694879,0.00018532,2]
[359070156,1745693432364,-8028.255989,0.00018532,2]
[359070157,1745693432374,-2445.7974344,0.00018581,2]
[359070158,1745693432383,-160.0,0.0001864,2]
[359070159,1745693432393,-160.0,0.0001864,2]
[359070160,1745693432403,-160.0,0.00018641,2]
[359070163,1745693432413,-500.0,0.00018651,2]
[359070166,1745693432423,-500.0,0.00018651,2]
[359070167,1745693432432,-500.0,0.00018651,2]
[359070168,1745693432442,-500.0,0.00018651,2]
[359070169,1745693432451,-500.0,0.00018651,2]
[359070170,1745693432461,-308.74616926,0.00018651,2]
[359070171,1745693432471,-500.0,0.00018651,2]
[359070172,1745693432482,-500.0,0.00018651,2]
[359070173,1745693432491,-500.0,0.00018651,2]
[359070174,1745693432502,-500.0,0.00018651,2]
[359070175,1745693432512,-500.0,0.00018651,2]
[359070176,1745693432522,-500.0,0.00018651,2]
[359070177,1745693432532,-500.0,0.00018651,2]
[359070178,1745693432541,-385.02027278,0.00018651,2]
[359070179,1745693432551,-500.0,0.00018651,2]
[359070180,1745693432560,-500.0,0.00018651,2]
[359070181,1745693432570,-500.0,0.00018651,2]
[359070182,1745693432579,-500.0,0.00018651,2]
[359070183,1745693432589,-500.0,0.00018651,2]
[359070184,1745693432599,-500.0,0.00018651,2]
[359070185,1745693432621,-500.0,0.00018651,2]
[359070186,1745693432632,-500.0,0.00018651,2]
[359070187,1745693432645,-500.0,0.00018651,2]
[359070188,1745693432656,-500.0,0.00018651,2]
[359070189,1745693432666,-500.0,0.00018651,2]
[359070190,1745693432677,-500.0,0.00018651,2]
[359070191,1745693432687,-500.0,0.00018651,2]
[359070192,1745693432697,-500.0,0.00018651,2]
[359070193,1745693432707,-500.0,0.00018651,2]
[359070194,1745693432718,-500.0,0.00018651,2]
[359070195,1745693432729,-500.0,0.00018651,2]
[359070196,1745693432739,-500.0,0.00018651,2]
[359070197,1745693432750,-500.0,0.00018651,2]
[359070198,1745693432760,-500.0,0.00018651,2]
[359070199,1745693432770,-500.0,0.00018651,2]
[359070200,1745693432780,-581.26331945,0.00018651,2]
[359070201,1745693432794,-581.26331945,0.00018651,2]
[359070202,1745693432803,-581.26331945,0.00018651,2]
[359070203,1745693432814,-581.26331945,0.00018651,2]
[359070204,1745693432824,-581.26331945,0.00018651,2]
[359070205,1745693432835,-581.26331945,0.00018651,2]
[359070206,1745693432845,-581.26331945,0.00018651,2]
[359070207,1745693432856,-581.26331945,0.00018651,2]
[359070208,1745693432866,-581.26331945,0.00018651,2]
[359070209,1745693432876,-581.26331945,0.00018651,2]
[359070210,1745693432887,-581.26331945,0.00018651,2]
[359070211,1745693432896,-581.26331945,0.00018651,2]
[359070212,1745693432906,-581.26331945,0.00018651,2]
[359070213,1745693432916,-581.26331945,0.00018651,2]
[359070214,1745693432925,-581.26331945,0.00018651,2]
[359070215,1745693432936,-581.26331945,0.00018651,2]
[359070216,1745693432945,-467.4948147,0.00018651,2]
[359070217,1745693432959,-113.76850475,0.00018651,2]
[359070218,1745693432969,-581.26331945,0.00018651,2]
[359070219,1745693432980,-581.26331945,0.00018651,2]
[359070220,1745693432990,-581.26331945,0.00018651,2]
[359070221,1745693432999,-581.26331945,0.00018651,2]
[359070222,1745693433010,-581.26331945,0.00018651,2]
[359070223,1745693433019,-581.26331945,0.00018651,2]
[359070224,1745693433029,-581.26331945,0.00018651,2]
[359070225,1745693433039,-581.26331945,0.00018651,2]
[359070226,1745693433049,-581.26331945,0.00018651,2]
[359070227,1745693433058,-581.26331945,0.00018651,2]
[359070228,1745693433069,-581.26331945,0.00018651,2]
[359070229,1745693433079,-581.26331945,0.00018651,2]
[359070230,1745693433090,-581.26331945,0.00018651,2]
[359070231,1745693433100,-581.26331945,0.00018651,2]
[359070232,1745693433110,-581.26331945,0.00018651,2]
[359070233,1745693433120,-581.26331945,0.00018651,2]
[359070234,1745693433130,-570.31198154,0.00018651,2]
[359070235,1745693433140,-570.31198154,0.00018651,2]
[359070236,1745693433150,-570.31198154,0.00018651,2]
[359070237,1745693433161,-570.31198154,0.00018651,2]
[359070238,1745693433171,-570.31198154,0.00018651,2]
[359070239,1745693433182,-570.31198154,0.00018651,2]
[359070240,1745693433192,-570.31198154,0.00018651,2]
[359070241,1745693433202,-570.31198154,0.00018651,2]
[359070242,1745693433212,-570.31198154,0.00018651,2]
[359070243,1745693433222,-570.31198154,0.00018651,2]
[359070244,1745693433236,-570.31198154,0.00018651,2]
[359070245,1745693433247,-570.31198154,0.00018651,2]
[359070246,1745693433257,-570.31198154,0.00018651,2]
[359070247,1745693433267,-570.31198154,0.00018651,2]
[359070248,1745693433277,-570.31198154,0.00018651,2]
[359070249,1745693433287,-570.31198154,0.00018651,2]
[359070250,1745693433298,-570.31198154,0.00018651,2]
[359070251,1745693433308,-570.31198154,0.00018651,2]
[359070252,1745693433318,-570.31198154,0.00018651,2]
[359070253,1745693433329,-570.31198154,0.00018651,2]
[359070254,1745693433339,-570.31198154,0.00018651,2]
[359070255,1745693433350,-570.31198154,0.00018651,2]
[359070256,1745693433360,-570.31198154,0.00018651,2]
[359070257,1745693433372,-511.16272342,0.00018655,2]
[359070258,1745693433382,-153.13181273,0.00018655,2]
[359070259,1745693433393,-205.93719128,0.00018655,2]
[359070260,1745693433403,-12500.0,0.00018656,2]
[359070261,1745693433413,-9118.06265979,0.00018656,2]
[359070262,1745693433423,-360.47876777,0.000189,2]
[359070263,1745693433434,-250.0,0.00018963,2]
[359070264,1745693433444,-500.0,0.00019258,2]
[359070265,1745693433454,-300.0,0.00019258,2]
[359070266,1745693433465,-500.0,0.00019305,2]
[359070267,1745693433475,-500.0,0.00019305,2]
[359070268,1745693433485,-500.0,0.00019305,2]
[359070269,1745693433495,-500.0,0.00019305,2]
[359070270,1745693433506,-500.0,0.00019305,2]
[359070271,1745693433515,-500.0,0.00019305,2]
[359070272,1745693433525,-500.0,0.00019305,2]
[359070273,1745693433536,-175.1,0.0001964,2]
[359070274,1745693433546,-175.1,0.0001964,2]
[359070275,1745693433557,-175.1,0.0001964,2]
[359070276,1745693433566,-175.1,0.0001964,2]
[359070277,1745693433576,-175.1,0.0001964,2]
[359070278,1745693433586,-175.1,0.0001964,2]
[359070279,1745693433596,-507.82241234,0.00019873,2]
[359070280,1745693433607,-293.18206662,0.00019892,2]
[359070281,1745693433617,-733.96011115,0.000199,2]
[359070282,1745693433628,-515.41,0.00019947,2]
[359070283,1745693433639,-191.76,0.00019947,2]
[359070284,1745693433649,-400.0,0.00019947,2]
[359070285,1745693433663,-160.0,0.00019947,2]
[359070286,1745693433877,-160.0,0.00019947,2]
[359070287,1745693433888,-160.0,0.00019947,2]
[359070288,1745693433898,-421.06755229,0.0001995,2]
[359070289,1745693433909,-500.0,0.00019973,2]
[359070290,1745693433919,-7710.01588402,0.0001999,2]
[359070330,1745693438467,-908.7836263,0.0001999,2]
[359070344,1745693438742,-414.48572919,0.0001999,2]
[359070346,1745693438754,-42569.89438099,0.0001999,2]
[359070347,1745693438766,-48396.8203795,0.0001999,2]